bitfinex-derivatives/quotes_ETHF0:USTF0_20260314
["timestamp","ask_amount","ask_price","bid_price","bid_amount"]
[1773503763105,2.18190891,2074.8,2074.1,2.14578562]
[1773503784737,0.00563564,2074.8,2074.1,2.14578562]
[1773503784937,0.00563564,2074.8,2074.3,2.02052869]
[1773503785235,2.07940391,2074.8,2074.3,2.02052869]
[1773503787633,2.07376827,2075.0,2074.3,2.02052869]
[1773503788738,2.07821878,2075.0,2074.3,2.02052869]
[1773503797545,2.07821878,2075.0,2074.4,1.52499271]
[1773503797743,2.07821878,2075.0,2074.5,2.02052869]
[1773503799946,2.07821878,2075.0,2074.3,2.02052869]
[1773503818155,2.07821878,2075.0,2074.3,2.26579172]
[1773503829261,2.07821878,2075.0,2074.4,2.13093648]
[1773503831455,2.07821878,2075.0,2074.3,7.79565909]
[1773503831456,2.07821878,2075.0,2074.3,0.24526303]
[1773503831658,2.0751796,2074.8,2074.2,2.13093648]
[1773503831852,2.0751796,2074.8,2074.1,9.68708829]
[1773503833262,2.0751796,2074.8,2074.1,2.13669223]
[1773503836063,2.0751796,2074.8,2074.1,2.38267793]
[1773503842570,2.0751796,2074.8,2074.1,2.13669223]
[1773503861280,2.0751796,2074.8,2074.2,2.09310398]
[1773503862278,2.0751796,2074.8,2074.1,7.55615181]
[1773503862481,2.11398992,2074.6,2074.1,0.00575575]
[1773503870388,2.11398992,2074.6,2074.1,2.04223254]
[1773503871089,2.11398992,2074.6,2074.1,0.00575575]
[1773503882301,2.11398992,2074.6,2073.9,2.17701568]
[1773503883196,2.11398992,2074.6,2073.9,2.18059641]
[1773503898818,2.035737,2074.8,2074.3,2.17701568]
[1773503914631,2.1892489,2075.0,2074.3,2.17701568]
[1773503914831,5.65994596,2074.9,2074.3,2.17701568]
[1773503915332,7.84474435,2074.9,2074.3,2.17701568]
[1773503915527,2.18479839,2074.9,2074.3,2.17701568]
[1773503948167,7.77643771,2074.8,2074.3,2.17701568]
[1773503948363,2.11616906,2074.8,2074.3,2.17701568]
[1773503951169,2.11616906,2074.9,2074.3,2.17701568]
[1773503959875,7.778387,2074.8,2074.3,2.17701568]
[1773503960076,2.11616906,2074.8,2074.3,2.17701568]
[1773503974891,2.14420796,2075.0,2074.3,2.17701568]
[1773503996807,1.5247644,2074.9,2074.1,1.96723416]
[1773503997012,2.17676409,2074.8,2074.1,1.96723416]
[1773503999616,2.17676409,2074.7,2074.1,1.96723416]
[1773504000617,2.17676409,2074.7,2073.9,0.00358073]
[1773504001416,2.17676409,2074.7,2073.7,1.96723416]
[1773504001716,2.17676409,2074.7,2073.6,1.96723416]
[1773504002416,2.17676409,2074.7,2073.6,0.00531151]
[1773504004014,2.17676409,2074.7,2073.7,1.96723416]
[1773504007925,2.17676409,2074.7,2073.6,0.00531151]
[1773504008119,2.17676409,2074.5,2073.3,1.96723416]
[1773504008421,2.17676409,2074.3,2073.3,1.96723416]
[1773504009223,2.17676409,2074.3,2073.3,1.97082191]
[1773504010724,2.17676409,2074.2,2073.3,1.97082191]
[1773504045655,2.17676409,2074.2,2073.4,2.0653265]
[1773504051362,2.17676409,2074.2,2073.3,1.52933947]
[1773504051363,1.84831114,2074.7,2073.7,2.0079927]
[1773504051758,1.84831114,2074.5,2073.7,2.0079927]
[1773504065070,1.84831114,2074.3,2073.4,2.0079927]
[1773504066366,1.84831114,2074.1,2073.3,2.0079927]
[1773504066570,1.84831114,2074.0,2073.3,2.0079927]
[1773504067370,1.84831114,2074.0,2073.3,2.01199049]
[1773504068873,1.84831114,2073.9,2073.3,2.01199049]
[1773504074876,1.84831114,2073.6,2072.9,2.0079927]
[1773504076073,1.84831114,2073.6,2072.9,2.01389461]
[1773504085579,1.86054836,2074.0,2072.9,2.01389461]
[1773504085785,5.06849178,2074.3,2072.9,2.01389461]
[1773504085786,3.49369401,2073.8,2072.9,2.01389461]
[1773504099295,3.47896888,2073.8,2072.9,2.01389461]
[1773504108102,3.49369401,2073.6,2072.9,2.01389461]
[1773504122121,3.22711359,2073.4,2072.9,2.01389461]
[1773504122418,3.23201898,2073.4,2072.9,2.01389461]
[1773504122922,0.00490539,2073.4,2072.9,2.01389461]
[1773504128622,5.12294219,2073.7,2072.9,2.01389461]
[1773504128829,3.22711359,2073.6,2072.9,2.01389461]
[1773504129522,3.22711359,2074.2,2072.9,2.01389461]
[1773504129728,5.12294219,2073.9,2073.2,3.25626776]
[1773504130126,3.22711359,2073.8,2073.2,3.25626776]
[1773504131222,3.22711359,2073.9,2073.2,3.25626776]
[1773504131828,1.8958286,2073.8,2073.2,3.25626776]
[1773504132028,5.12294219,2073.8,2073.2,3.25626776]
[1773504133328,3.22711359,2073.7,2073.2,3.25626776]
[1773504137931,1.8958286,2073.4,2073.0,3.25626776]
[1773504138228,3.22711359,2073.1,2072.8,3.25626776]
[1773504138431,3.22711359,2073.2,2072.8,3.25626776]
[1773504139435,3.22711359,2073.2,2072.8,3.26051433]
[1773504146440,3.03853485,2073.1,2072.8,3.26051433]
[1773504146642,3.03853485,2073.1,2072.8,1.16077024]
[1773504147242,3.03853485,2073.1,2072.7,1.50017281]
[1773504148236,3.03853485,2073.1,2072.7,1.50416294]
[1773504150145,2.39858976,2073.1,2072.9,7.57851856]
[1773504151842,2.39858976,2073.1,2072.7,1.50416294]
[1773504151843,3.03853485,2072.9,2072.7,0.00399013]
[1773504152142,3.03853485,2072.8,2072.4,12.22585334]
[1773504152542,3.03853485,2072.8,2072.5,2.10754175]
[1773504152941,3.03853485,2072.8,2072.5,2.11242304]
[1773504156546,3.03853485,2072.8,2072.5,0.00488129]
[1773504160645,4.93436345,2072.8,2072.5,0.00488129]
[1773504160851,3.03853485,2072.7,2072.2,3.18456551]
[1773504161752,3.0442903,2072.7,2072.2,3.18890112]
[1773504164449,3.03853485,2072.9,2072.3,1.8958286]
[1773504164652,3.03853485,2072.9,2072.4,2.94568872]
[1773504165448,3.04314711,2072.9,2072.4,2.94568872]
[1773504177252,3.04314711,2072.9,2072.3,2.79914953]
[1773504177554,3.04314711,2072.9,2072.2,0.00433561]
[1773504177754,3.04314711,2072.9,2072.2,2.80348514]
[1773504177950,3.22918987,2072.5,2072.2,0.00433561]
[1773504178648,3.22918987,2072.5,2071.8,10.10469142]
[1773504178649,3.22918987,2072.5,2071.9,2.78311665]
[1773504179751,3.22918987,2072.5,2071.9,2.78751526]
[1773504180550,3.22918987,2072.5,2072.0,2.75029571]
[1773504180757,3.22918987,2072.8,2072.0,2.75029571]
[1773504181059,3.22918987,2072.7,2072.0,2.75029571]
[1773504185361,3.22918987,2072.7,2071.9,0.00439861]
[1773504185362,3.22918987,2072.7,2071.9,2.67455524]
[1773504188362,3.22918987,2072.7,2071.9,0.00439861]
[1773504189254,3.22918987,2072.7,2071.9,2.6379979]
[1773504198567,3.22918987,2072.7,2071.9,2.4766684]
[1773504199766,3.22918987,2072.7,2071.9,2.48269764]
[1773504200162,3.22918987,2072.7,2071.9,0.00602924]
[1773504200361,1.86213603,2072.6,2071.9,0.00602924]
[1773504200565,3.22918987,2072.5,2071.5,2.66706918]
[1773504201065,3.22918987,2072.5,2071.5,2.42335714]
[1773504201661,3.22918987,2072.5,2071.5,2.42783864]
[1773504206275,3.22918987,2072.5,2071.5,0.0044815]
[1773504207175,3.22918987,2072.5,2071.5,2.24534786]
[1773504209975,3.22918987,2072.5,2071.2,10.34119779]
[1773504209976,3.2457881,2072.4,2071.3,2.20284413]
[1773504210178,3.2457881,2072.4,2071.5,2.18220105]
[1773504210877,3.2457881,2072.4,2071.5,2.18688599]
[1773504212083,3.2457881,2072.4,2071.6,2.1411036]
[1773504215382,5.10792413,2072.4,2071.5,0.00468494]
[1773504215582,3.2457881,2072.3,2071.5,0.00468494]
[1773504215783,3.2457881,2072.3,2071.1,12.2530913]
[1773504215984,0.2412,2072.6,2071.1,2.14839988]
[1773504215985,3.2457881,2072.0,2071.1,2.14839988]
[1773504216984,3.2457881,2072.0,2071.1,2.15244704]
[1773504242212,3.2457881,2072.0,2071.3,1.77367238]
[1773504242707,2.8897538,2072.5,2071.6,1.77367238]
[1773504243109,2.8897538,2072.4,2071.4,1.7905506]
[1773504243312,2.8897538,2072.4,2071.3,1.7905506]
[1773504243812,2.8897538,2072.0,2071.1,1.79459776]
[1773504244015,2.8897538,2071.8,2071.1,1.79459776]
[1773504248612,2.8897538,2071.8,2071.1,1.86143448]
[1773504255318,2.8897538,2071.8,2071.2,1.74716549]
[1773504257522,2.8897538,2071.8,2071.1,1.73773121]
[1773504258228,2.8897538,2071.7,2071.1,1.73773121]
[1773504259918,2.8897538,2071.7,2071.1,0.00404716]
[1773504260129,2.8897538,2071.5,2071.1,0.00404716]
[1773504260826,2.8897538,2071.5,2071.1,0.00114536]
[1773504272631,2.8897538,2071.5,2070.9,1.41365996]
[1773504273431,2.8897538,2071.5,2070.8,12.00363001]
[1773504273432,2.8897538,2071.5,2071.0,3.31688928]
[1773504273628,2.8897538,2071.5,2071.0,3.32278755]
[1773504274927,1.89893859,2071.9,2071.0,3.32278755]
[1773504274928,1.89893859,2071.9,2071.1,1.36664031]
[1773504275137,2.6993227,2071.8,2071.3,1.36664031]
[1773504275330,2.6993227,2071.8,2071.5,1.35257084]
[1773504275532,2.6993227,2072.1,2071.5,1.35257084]
[1773504277733,2.6993227,2072.1,2071.3,2.52667412]
[1773504278033,2.6993227,2072.1,2071.3,4.42561271]
[1773504278635,2.6993227,2071.7,2071.0,0.00589827]
[1773504279133,2.6993227,2071.7,2071.1,1.89893859]
[1773504279328,2.6993227,2071.7,2071.1,4.42561271]
[1773504280230,2.6993227,2071.7,2071.1,2.52667412]
[1773504284331,2.6993227,2071.7,2071.1,4.42561271]
[1773504284532,1.98920683,2071.8,2071.5,4.42561271]
[1773504284733,0.66581461,2071.8,2071.5,4.42561271]
[1773504284933,0.66581461,2071.8,2071.5,2.52667412]
[1773504285534,2.6993227,2071.9,2071.5,2.52667412]
[1773504286130,2.6993227,2071.9,2071.6,2.52667412]
[1773504287231,2.6993227,2072.3,2071.8,2.52667412]
[1773504287428,2.6993227,2072.7,2071.9,1.89893859]
[1773504287629,2.6993227,2072.7,2072.0,2.52667412]
[1773504287930,2.6993227,2072.7,2072.1,1.89893859]
[1773504288131,2.6993227,2072.7,2072.3,2.52667412]
[1773504289829,2.70393496,2072.9,2072.4,2.52667412]
[1773504291336,2.70393496,2072.9,2072.3,2.5020213]
[1773504293839,2.70393496,2072.9,2072.1,4.40095989]
[1773504294734,2.70393496,2072.9,2072.2,2.5020213]
[1773504301643,2.70393496,2072.9,2071.5,12.60671272]
[1773504301848,0.24125,2072.3,2071.3,2.68713731]
[1773504302048,8.92923108,2072.2,2071.4,2.68713731]
[1773504302642,8.927,2072.1,2071.4,2.68713731]
[1773504302942,0.09666671,2072.0,2071.4,2.68713731]
[1773504303851,9.48535726,2072.1,2071.4,2.68713731]
[1773504304045,9.48535726,2072.1,2071.0,0.00589827]
[1773504304046,0.55035726,2072.2,2071.6,2.59738967]
[1773504304240,0.55035726,2072.2,2071.0,0.00589827]
[1773504304241,0.54245786,2071.7,2071.0,0.00589827]
[1773504304447,0.54245786,2071.7,2071.0,2.60328794]
[1773504304647,0.54245786,2071.5,2071.0,2.60328794]
[1773504307853,0.52059809,2071.1,2070.1,2.59647994]
[1773504308050,9.44459809,2071.0,2070.1,2.59647994]
[1773504308250,8.926,2070.9,2070.1,2.59647994]
[1773504308956,0.51685156,2070.9,2070.1,2.60087986]
[1773504309852,0.00478979,2070.9,2070.1,2.60087986]
[1773504310947,8.929,2071.3,2070.1,2.60087986]
[1773504311152,8.93,2071.3,2070.1,2.60087986]
[1773504311351,0.49162505,2071.2,2070.1,2.60087986]
[1773504311552,0.49162505,2071.0,2070.1,2.60087986]
[1773504311757,9.42762505,2071.0,2070.1,2.60087986]
[1773504312054,0.52599915,2070.9,2070.1,2.60087986]
[1773504314465,0.52599915,2070.9,2069.6,2.57234285]
[1773504314968,0.50960937,2070.7,2069.6,2.57234285]
[1773504315357,0.50960937,2070.7,2069.6,2.57590339]
[1773504320557,0.50960937,2070.7,2068.8,0.23956057]
[1773504320558,0.63902274,2070.0,2068.3,2.5020213]
[1773504320860,9.62702274,2069.9,2067.7,2.5020213]
[1773504321065,0.68942675,2069.7,2067.9,2.5020213]
[1773504321462,8.991,2069.6,2067.9,2.5020213]
[1773504321664,0.69378843,2069.5,2068.1,2.55265044]
[1773504321863,0.69802612,2069.5,2068.1,2.55265044]
[1773504322264,0.67941302,2070.8,2069.3,2.55265044]
[1773504322466,0.67941302,2070.8,2069.5,2.55265044]
[1773504322662,0.67941302,2070.8,2069.6,2.55265044]
[1773504323163,0.67941302,2070.8,2069.5,2.55265044]
[1773504323463,0.63155768,2070.7,2069.6,2.55843101]
[1773504326060,0.65790323,2070.3,2068.9,2.55265044]
[1773504327167,0.65790323,2070.3,2068.9,2.55752225]
[1773504328771,0.44124773,2070.1,2069.0,2.55265044]
[1773504330469,0.44124773,2070.1,2069.1,2.55265044]
[1773504330864,0.44124773,2070.1,2069.2,2.55265044]
[1773504331270,0.4528232,2069.9,2068.9,2.55752225]
[1773504331471,0.4528232,2069.8,2068.9,2.55752225]
[1773504333569,0.4528232,2069.8,2068.9,3.22674396]
[1773504333779,0.4528232,2069.8,2068.9,2.55752225]
[1773504334171,0.4528232,2069.8,2069.1,0.66922171]
[1773504334473,0.4528232,2069.8,2069.0,2.55265044]
[1773504334876,0.4528232,2069.8,2069.0,3.22187215]
[1773504335067,0.4528232,2069.8,2069.1,2.55265044]
[1773504336373,0.4528232,2069.8,2068.9,2.55752225]
[1773504336767,0.4628232,2069.8,2068.9,3.22674396]
[1773504337075,0.4628232,2069.8,2068.9,2.55752225]
[1773504338678,0.01,2069.8,2069.2,2.55265044]
[1773504338872,0.3530511,2070.2,2069.2,2.55265044]
[1773504339079,0.3530511,2070.2,2069.5,2.55265044]
[1773504339381,0.3400489,2070.5,2069.5,2.55265044]
[1773504339573,0.3400489,2070.5,2069.7,2.55265044]
[1773504340074,0.3400489,2070.5,2069.8,2.55265044]
[1773504340577,0.3400489,2070.5,2069.9,2.55265044]
[1773504341079,0.3400489,2070.5,2069.9,3.22187215]
[1773504341384,0.3400489,2070.5,2070.0,2.55265044]
[1773504342076,0.3400489,2070.5,2069.0,2.55265044]
[1773504342275,0.3400489,2070.5,2069.2,2.55265044]
[1773504342577,0.30670756,2070.4,2069.2,2.55265044]
[1773504342781,0.30670756,2070.4,2069.1,0.66922171]
[1773504342782,0.30670756,2070.2,2069.5,2.55265044]
[1773504343675,0.30670756,2070.2,2069.5,3.22187215]
[1773504343976,0.30670756,2070.2,2069.5,2.55265044]
[1773504344176,0.30670756,2070.2,2069.7,2.55265044]
[1773504344783,0.30670756,2070.2,2069.7,3.22187215]
[1773504346479,0.30670756,2070.2,2069.0,2.55265044]
[1773504346979,0.30670756,2070.2,2069.4,2.55265044]
[1773504347474,4.02142811,2070.5,2069.4,2.55265044]
[1773504347681,6.31838621,2070.4,2069.4,2.55265044]
[1773504347977,6.31838621,2070.4,2068.9,0.00487181]
[1773504347978,0.26042781,2070.4,2069.7,2.55265044]
[1773504348380,0.26042781,2070.4,2069.9,0.66922171]
[1773504348674,0.50188781,2070.4,2069.4,2.63385438]
[1773504348878,0.00477814,2070.3,2069.4,2.63385438]
[1773504349181,4.828,2070.3,2069.4,2.63385438]
[1773504349476,6.05803659,2070.2,2069.4,2.63385438]
[1773504349978,0.02550474,2070.1,2069.4,2.63385438]
[1773504350771,9.025,2070.1,2069.4,2.63385438]
[1773504350976,0.19621299,2070.0,2069.4,2.63385438]
[1773504355074,9.025,2070.1,2069.4,2.63385438]
[1773504357285,9.25871052,2070.1,2069.4,2.63385438]
[1773504358784,9.025,2070.1,2069.4,2.63385438]
[1773504360184,9.11530665,2070.1,2069.4,2.63385438]
[1773504361579,0.08718769,2070.0,2069.4,2.63385438]
[1773504361979,9.11147817,2070.1,2069.4,2.63385438]
[1773504362174,9.025,2070.1,2069.4,2.63385438]
[1773504363786,9.10107104,2070.4,2069.4,2.63385438]
[1773504364085,0.05407104,2070.3,2069.4,2.63385438]
[1773504364288,9.047,2070.4,2069.4,2.63385438]
[1773504365580,0.05654341,2070.8,2069.4,2.63385438]
[1773504365784,0.05058514,2070.7,2069.4,2.63385438]
[1773504367784,0.05058514,2070.7,2069.5,2.52490677]
[1773504368977,6.07773231,2070.8,2069.5,2.52490677]
[1773504369181,6.12848279,2070.8,2069.5,2.52490677]
[1773504369987,0.05670875,2070.8,2069.5,2.52490677]
[1773504372693,0.00595827,2070.8,2069.6,2.45427351]
[1773504378297,0.08231418,2071.1,2069.6,2.45427351]
[1773504378497,6.05899133,2071.3,2069.6,2.45427351]
[1773504378498,0.08231418,2071.3,2069.9,2.45427351]
[1773504378801,0.08231418,2071.3,2070.1,2.45427351]
[1773504379207,0.08592259,2071.3,2070.1,2.45427351]
[1773504380497,0.08592259,2071.3,2070.3,2.45427351]
[1773504385999,1.90023252,2071.1,2070.3,2.45427351]
[1773504387609,1.90018056,2071.1,2070.3,2.45427351]
[1773504388103,0.02971884,2071.2,2070.3,2.45427351]
[1773504390209,0.24137,2071.2,2069.7,2.39528589]
[1773504390407,2.29815238,2070.1,2069.3,2.38393873]
[1773504395209,11.33215238,2070.5,2069.3,2.38393873]
[1773504395914,2.29815238,2070.4,2069.3,2.38393873]
[1773504419326,2.28257764,2070.6,2069.5,2.28938994]
[1773504420219,2.28257764,2070.6,2069.6,2.28938994]
[1773504420722,2.28257764,2070.6,2069.6,21.57638994]
[1773504420922,2.28257764,2070.6,2069.7,2.28938994]
[1773504421124,2.28257764,2070.6,2069.8,2.28938994]
[1773504421725,2.28257764,2071.0,2070.2,2.28938994]
[1773504421928,2.28257764,2070.8,2070.2,2.28938994]
[1773504428428,2.28257764,2071.1,2070.2,2.28938994]
[1773504428627,2.28257764,2071.2,2070.2,2.28938994]
[1773504429529,2.52394764,2071.2,2070.2,2.28938994]
[1773504440335,2.28257764,2071.2,2070.2,2.28938994]
[1773504442832,0.00360841,2071.3,2070.2,2.28938994]
[1773504443237,2.0333614,2071.3,2070.2,2.28938994]
[1773504443530,2.02975299,2071.2,2070.3,19.139]
[1773504443736,2.02975299,2071.2,2070.4,2.03456002]
[1773504444033,2.02975299,2070.9,2070.3,2.03456002]
[1773504444238,2.02975299,2070.9,2070.0,2.03456002]
[1773504445038,2.02975299,2070.9,2070.0,2.03975721]
[1773504445631,2.02975299,2070.6,2070.0,2.03975721]
[1773504445839,2.02975299,2070.6,2070.0,0.00519719]
[1773504446234,2.02975299,2070.6,2069.8,2.03456002]
[1773504447335,2.02975299,2070.6,2069.8,2.03849148]
[1773504451147,2.02975299,2071.0,2069.8,2.03849148]
[1773504454448,2.02975299,2071.0,2069.9,2.03456002]
[1773504456754,2.02975299,2071.0,2070.2,2.03456002]
[1773504466163,2.02975299,2071.2,2070.3,2.03456002]
[1773504466463,2.02975299,2071.2,2070.4,2.03456002]
[1773504467761,2.02975299,2071.2,2070.4,1.03456002]
[1773504468067,2.02975299,2071.2,2070.3,1.57669562]
[1773504468267,2.02975299,2071.2,2070.4,1.57669562]
[1773504483682,2.08409743,2071.3,2070.5,1.68060396]
[1773504484276,2.08409743,2071.3,2070.6,1.68832662]
[1773504485181,2.08409743,2071.3,2070.5,1.69006938]
[1773504486984,2.08409743,2071.3,2070.6,1.67685201]
[1773504487383,2.08409743,2071.3,2070.8,1.68137128]
[1773504487882,6.00729553,2072.3,2070.8,1.68137128]
[1773504487883,2.08048902,2071.7,2070.8,1.68137128]
[1773504488884,2.08552186,2071.7,2070.8,1.68137128]
[1773504489079,2.08552186,2071.7,2070.6,10.03772104]
[1773504489285,2.08048902,2071.6,2070.7,2.2086537]
[1773504490287,2.08048902,2071.5,2070.8,2.2086537]
[1773504504897,2.08048902,2071.5,2071.2,2.00352626]
[1773504505203,1.97542263,2071.9,2071.4,2.00352626]
[1773504505499,1.97542263,2071.9,2071.6,2.00352626]
[1773504506305,0.00371862,2071.9,2071.6,2.00691976]
[1773504507601,1.97542263,2072.4,2071.6,2.00691976]
[1773504508500,1.98072299,2072.4,2071.6,2.00691976]
[1773504512110,1.98072299,2072.4,2071.8,2.00352626]
[1773504516019,1.97542263,2072.2,2071.6,0.0033935]
[1773504516721,1.97542263,2072.0,2071.6,0.0033935]
[1773504517610,1.97542263,2072.3,2071.8,3.90288905]
[1773504517812,1.97542263,2072.3,2071.9,2.00352626]
[1773504520113,1.97542263,2072.3,2071.8,1.89936279]
[1773504520318,1.97542263,2072.3,2071.6,1.90275629]
[1773504520721,1.97542263,2072.3,2071.7,2.00352626]
[1773504528228,1.97542263,2072.3,2071.9,2.00352626]
[1773504528828,0.00530036,2072.4,2072.1,2.00352626]
[1773504528829,1.98072299,2072.4,2072.1,2.00352626]
[1773504529130,1.98072299,2072.4,2072.0,1.89936279]
[1773504529329,1.98072299,2072.4,2072.0,3.90288905]
[1773504530330,1.98072299,2072.4,2072.0,2.00352626]
[1773504533022,1.98072299,2072.4,2071.8,1.89936279]
[1773504533330,1.98072299,2072.4,2071.9,1.90720943]
[1773504536130,0.00530036,2072.4,2071.9,1.90720943]
[1773504536425,1.87090481,2072.7,2072.2,3.80657222]
[1773504536927,1.87090481,2072.7,2072.2,1.89936279]
[1773504537133,1.87090481,2072.7,2072.3,1.90720943]
[1773504537433,1.87439756,2072.7,2072.3,1.90720943]
[1773504538034,1.87090481,2073.3,2072.5,1.90720943]
[1773504538233,1.87090481,2073.2,2072.5,1.90720943]
[1773504538932,1.87551634,2073.2,2072.5,1.90720943]
[1773504542935,1.87551634,2073.2,2072.7,1.90720943]
[1773504544932,1.87090481,2073.3,2073.0,3.80657222]
[1773504545235,1.87090481,2073.3,2073.0,1.90720943]
[1773504545935,1.87682154,2073.3,2073.0,1.90720943]
[1773504546135,0.00591673,2073.3,2073.0,1.90720943]
[1773504546737,1.87682154,2073.3,2073.0,1.90720943]
[1773504547131,1.87682154,2073.3,2072.6,1.90720943]
[1773504547132,1.87090481,2073.2,2072.6,1.90720943]
[1773504547332,1.87090481,2073.0,2072.6,1.90720943]
[1773504547834,1.87090481,2073.2,2072.6,1.90720943]
[1773504559240,0.00591673,2073.3,2072.6,1.90720943]
[1773504560744,1.87090481,2073.5,2072.9,1.90720943]
[1773504561043,8.874,2074.3,2072.4,28.16272104]
[1773504561044,1.87090481,2074.0,2073.2,1.90720943]
[1773504561745,1.87696572,2074.0,2073.3,1.88118035]
[1773504564444,0.00606091,2074.0,2073.3,1.88118035]
[1773504567451,0.00606091,2074.0,2073.5,1.88118035]
[1773504570650,2.01996311,2074.0,2073.3,20.43918035]
[1773504570851,2.01996311,2074.0,2073.4,1.88118035]
[1773504579652,2.01996311,2074.0,2073.4,20.55018035]
[1773504580055,2.01996311,2074.0,2073.5,1.88118035]
[1773504585861,2.0139022,2074.2,2073.5,1.88118035]
[1773504586862,2.01899557,2074.2,2073.5,1.88118035]
[1773504589464,2.01899557,2074.2,2073.4,18.669]
[1773504589465,0.00509337,2074.2,2073.7,1.88118035]
[1773504589666,2.01899557,2074.2,2073.7,1.88118035]
[1773504592167,1.80121222,2074.8,2073.7,1.88118035]
[1773504592366,1.80121222,2074.7,2073.7,1.88118035]
[1773504593264,1.80601136,2074.7,2073.7,1.88118035]
[1773504593564,1.80601136,2074.7,2074.0,1.89629207]
[1773504593767,1.80601136,2074.7,2074.2,1.89629207]
[1773504595262,1.80601136,2074.7,2073.7,10.03772104]
[1773504595466,1.80601136,2074.7,2073.9,1.89629207]
[1773504597570,1.80601136,2074.7,2073.9,3.75736451]
[1773504597866,1.80601136,2074.7,2074.0,1.89629207]
[1773504599861,1.80601136,2074.7,2074.2,1.89629207]
[1773504600265,1.80601136,2074.7,2074.1,18.748]
[1773504600666,1.80601136,2074.7,2074.1,20.64429207]
[1773504600970,1.80601136,2074.7,2074.2,1.89629207]
[1773504602972,0.00479914,2074.7,2074.2,1.89629207]
[1773504603274,1.75702315,2074.7,2074.2,20.64529207]
[1773504604673,1.75702315,2074.7,2074.1,1.89629207]
[1773504604970,1.75702315,2074.7,2074.1,20.64629207]
[1773504605362,1.75702315,2074.7,2074.2,1.89629207]
[1773504605761,1.75702315,2074.7,2074.0,1.89629207]
[1773504605973,1.75702315,2074.7,2074.0,20.64729207]
[1773504606269,1.75702315,2074.7,2074.1,1.89629207]
[1773504614382,1.75702315,2074.7,2074.0,18.757]
[1773504615079,1.75702315,2074.7,2074.0,20.65329207]
[1773504615583,1.58737078,2074.6,2074.0,1.89629207]
[1773504627194,1.35392425,2074.7,2074.0,1.89629207]
[1773504630096,1.35392425,2074.7,2073.9,20.65358821]
[1773504630097,1.35392425,2074.7,2074.1,3.59007897]
[1773504631097,1.35392425,2074.7,2074.2,1.69649076]
[1773504631693,1.33841495,2074.5,2073.9,1.69649076]
[1773504631893,1.33841495,2074.3,2073.8,1.69649076]
[1773504633897,1.33841495,2074.3,2073.7,18.819]
[1773504634097,1.33841495,2074.3,2073.7,20.51549076]
[1773504634597,1.33841495,2074.3,2073.9,1.69649076]
[1773504637402,1.38020986,2074.5,2073.9,1.69649076]
[1773504637703,1.385009,2074.7,2074.1,1.69649076]
[1773504645217,1.29122605,2074.6,2073.9,1.69649076]
[1773504649625,1.29122605,2074.6,2074.1,1.69649076]
[1773504651021,1.25683179,2074.5,2073.9,1.65459211]
[1773504659929,1.24820798,2074.1,2073.7,1.60286895]
[1773504660831,1.24820798,2074.1,2073.5,1.60286895]
[1773504664232,1.28435883,2073.9,2073.5,0.96086897]
[1773504664933,1.28435883,2073.9,2073.3,1.60286895]
[1773504669634,1.67069886,2073.7,2073.3,1.60286895]
[1773504670436,1.67069886,2073.7,2073.2,0.00442679]
[1773504670933,13.31391236,2074.4,2073.0,1.60286895]
[1773504670934,1.67069886,2073.5,2073.0,1.60286895]
[1773504671838,1.67069886,2073.5,2073.0,1.60890123]
[1773504681042,1.67069886,2073.5,2073.0,0.00603228]
[1773504683847,1.67069886,2073.5,2072.7,1.62591731]
[1773504684744,1.67069886,2073.5,2072.7,1.63157412]
[1773504695747,1.67069886,2073.5,2072.7,0.00565681]
[1773504704156,1.67069886,2073.5,2072.7,1.63157412]
[1773504706460,1.58717638,2073.5,2072.8,1.62591731]
[1773504710156,1.43566217,2073.4,2072.7,0.00565681]
[1773504710458,1.43566217,2073.4,2072.7,1.45155507]
[1773504712757,12.1999189,2073.8,2072.7,1.45155507]
[1773504712963,1.48797265,2073.5,2072.7,1.45155507]
[1773504732375,1.48797265,2073.4,2072.7,1.45155507]
[1773504743988,1.48797265,2073.4,2072.3,1.54697263]
[1773504743989,1.52832098,2072.8,2072.3,1.54697263]
[1773504745093,1.53267141,2072.8,2072.3,1.55129536]
[1773504752398,0.00435043,2072.8,2072.3,1.55129536]
[1773504755902,0.00435043,2072.8,2072.3,3.44746877]
[1773504756205,0.00435043,2072.8,2072.4,1.43049403]
[1773504760607,1.37004608,2073.0,2072.4,1.43049403]
[1773504761606,1.37475471,2073.0,2072.4,1.43049403]
[1773504763408,0.00470863,2073.0,2072.4,1.43049403]
[1773504764109,1.37475471,2073.0,2072.4,1.43049403]
[1773504764407,0.00470863,2073.0,2072.4,1.43049403]
[1773504769113,1.37004608,2073.5,2073.0,1.43049403]
[1773504769811,1.38162503,2073.7,2073.2,1.4795916]
[1773504770006,1.38626031,2073.7,2073.2,1.4795916]
[1773504785524,0.00463528,2073.7,2073.2,1.4795916]
[1773504785824,1.41159957,2073.7,2073.2,1.4795916]
[1773504787922,1.40696429,2073.3,2072.7,1.46132531]
[1773504806845,1.41863222,2073.5,2072.7,1.46132531]
[1773504807438,1.41863222,2073.5,2072.4,1.48902654]
[1773504814547,1.41863222,2073.3,2072.4,1.48902654]
[1773504814741,1.41863222,2073.1,2072.4,1.48902654]
[1773504838665,9.67580847,2073.2,2072.4,1.48902654]
[1773504844570,1.36080847,2073.1,2072.4,1.48902654]
[1773504876189,1.39079757,2073.4,2072.9,1.40001151]
[1773504876492,1.39079757,2073.6,2072.9,1.40001151]
[1773504879095,1.37140729,2073.4,2072.9,1.40001151]
[1773504886506,1.36135198,2073.6,2072.9,1.40001151]
[1773504925130,1.36135198,2073.6,2072.7,1.32872071]
[1773504937433,1.36468943,2073.5,2072.7,1.32872071]
[1773504938232,1.36468943,2073.3,2072.5,1.32872071]
[1773504942327,1.36468943,2073.5,2072.5,1.32872071]
[1773504955644,1.34555652,2073.7,2072.5,1.32872071]
[1773504967460,0.00463528,2073.7,2072.5,1.32872071]
[1773504967655,1.34555652,2073.7,2072.5,1.32872071]
[1773504968161,1.34555652,2073.7,2072.7,1.4203476]
[1773504968462,0.00463528,2073.7,2072.7,1.4203476]
[1773504972164,1.34092124,2073.6,2072.7,1.4203476]
[1773504974864,1.34092124,2073.6,2072.7,1.66702956]
[1773504975065,1.34555652,2073.7,2072.7,1.66702956]
[1773504978766,0.00463528,2073.7,2073.0,1.4203476]
[1773504979166,1.34555652,2073.7,2073.0,1.4203476]
[1773504979472,1.34555652,2073.7,2073.0,42.2203476]
[1773504979770,1.34555652,2073.7,2073.2,1.4203476]
[1773504984867,0.00463528,2073.7,2073.2,1.4203476]
[1773504985369,1.35581818,2073.7,2073.2,1.4203476]
[1773504989479,0.00463528,2073.7,2073.2,1.4203476]
[1773504990277,1.31587023,2073.9,2073.2,1.4203476]
[1773504991176,1.32065037,2073.9,2073.2,1.4203476]
[1773504996575,1.35596304,2073.9,2073.2,1.4203476]
[1773504997183,0.00478014,2073.9,2073.2,1.4203476]
[1773504998983,1.35596304,2073.9,2073.3,1.3685218]
[1773505006684,1.35596304,2073.9,2073.1,1.3685218]
[1773505011292,1.35596304,2073.9,2073.2,1.33954552]
[1773505063241,1.23339142,2074.2,2073.5,1.33842863]